[Event "FIDE Open World Rapid 2024"]
[Site "New York"]
[Date "2024.12.27"]
[Round "9.17"]
[White "Dardha, Daniel"]
[Black "So, Wesley"]
[Result "1/2-1/2"]
[ECO "E11"]
[WhiteElo "2639"]
[BlackElo "2747"]
[Annotator "TA"]
[PlyCount "104"]
[EventDate "2024.12.14"]
[EventType "swiss"]
[EventCountry "USA"]
[SourceTitle "playchess.com"]
[Source "ChessBase"]
[SourceQuality "1"]
[TimeControl "900+10"]

{[%evp 23,104,-26,-27,-17,-39,-17,-12,-12,-11,-7,0,-1,0,-6,-6,-6,0,0,0,-6,0,0,0,0,0,0,0,-29,-18,-44,-37,-51,0,-11,0,0,0,0,0,0,0,0,0,0,0,0,0,0,16,0,8,0,0,0,0,0,0,0,0,0,0,0,0,0,0,0,0,0,0,0,0,0,0,0,0,0,0,0,0,0,0,0,0]} 1. d4 {[%emt 0:00:03]} Nf6 {[%emt 0:00:04]} 2. c4 {[%emt 0:00:02]} e6 {[%emt 0:00:02]} 3. g3 {[%emt 0:00:05]} Bb4+ {[%emt 0:00:16]} 4. Bd2 {[%emt 0:00:10]} Be7 {[%emt 0:00:06]} 5. Bg2 {[%emt 0:00:03]} d5 {[%emt 0:00:01]} 6. Nf3 {[%emt 0:00:02]} O-O {[%emt 0:00:03]} 7. O-O {[%emt 0:00:06]} Nbd7 {[%emt 0:00:02]} 8. Bc3 {[%emt 0:00:26]} b6 {[%emt 0:00:29]} 9. Nbd2 {[%emt 0:00:39]} Bb7 {[%emt 0:00:05]} 10. Rc1 {[%emt 0:01:24]} c5 {[%emt 0:01:31]} 11. Ne5 {[%emt 0:01:31]} Rc8 {[%emt 0:01:44]} 12. e3 {[%emt 0:01:31]} cxd4 {[%emt 0:04:40]} 13. Bxd4 {[%emt 0:01:05]} Nxe5 {[%emt 0:00:10]} 14. Bxe5 {[%emt 0:00:02]} Qd7 {[%emt 0:00:05]} 15. Qe2 {[%emt 0:04:39]} dxc4 {[%emt 0:00:22]} 16. Bxb7 {[%emt 0:00:04]} Qxb7 {[%emt 0:00:01]} 17. Nxc4 {[%emt 0:00:36]} Rfd8 {[%emt 0:00:22]} 18. Bd4 {[%emt 0:00:12]} Ne4 {[%emt 0:02:22]} 19. f3 {[%emt 0:00:50]} Nd6 {[%emt 0:00:02]} 20. Nxd6 {[%emt 0:00:15]} Bxd6 {[%emt 0:00:01]} 21. Kg2 {[%emt 0:00:34]} h5 {[%emt 0:00:20]} 22. Rfd1 {[%emt 0:00:17]} Rxc1 {[%emt 0:00:53]} 23. Rxc1 {[%emt 0:00:01]} Qd5 {[%emt 0:00:03]} 24. a4 {[%emt 0:01:31]} Qg5 {[%emt 0:00:52]} 25. Qb5 {[%emt 0:01:06]} e5 {[%emt 0:00:31]} 26. f4 {[%emt 0:00:20]} Qf5 {[%emt 0:00:27]} 27. fxe5 {[%emt 0:00:13] [#]} Bc5 {[%emt 0:00:01]} (27... Qe4+ $1 $15 28. Kh3 (28. Kg1 Bc5) 28... Bc5) 28. Qc6 {[%emt 0:00:30]} Qd3 {[%emt 0:00:42]} (28... Bxd4 {simplifies} 29. exd4 Rxd4 30. Qc8+ Qxc8 31. Rxc8+ Kh7) 29. Rf1 {[%emt 0:00:44]} Bxd4 {[%emt 0:01:54]} 30. exd4 {[%emt 0:00:01]} h4 {[%emt 0:00:01]} 31. Rf4 {[%emt 0:00:41]} Rxd4 {[%emt 0:01:29]} 32. Qe8+ {[%emt 0:00:22]} Kh7 {[%emt 0:00:01]} 33. Qxf7 {[%emt 0:00:11]} Rxf4 {[%emt 0:00:36]} 34. Qxf4 {[%emt 0:00:03]} Qe2+ {[%emt 0:00:04]} 35. Kh3 {[%emt 0:00:01]} hxg3 {[%emt 0:00:01]} 36. hxg3 {[%emt 0:00:11]} Qxb2 {[%emt 0:00:04]} 37. e6 {[%emt 0:00:36]} Qe2 {[%emt 0:00:20]} 38. Qf5+ {[%emt 0:00:00]} Kh6 {[%emt 0:00:08]} 39. Qf4+ {[%emt 0:00:14]} Kh7 {[%emt 0:00:07]} 40. Qf7 {[%emt 0:00:01]} Qe4 {[%emt 0:00:11]} 41. Qh5+ {[%emt 0:00:17]} Kg8 {[%emt 0:00:00]} 42. Qf7+ {[%emt 0:00:08]} Kh7 {[%emt 0:00:01]} 43. e7 {[%emt 0:00:15]} Qh1+ {[%emt 0:00:02]} 44. Kg4 {[%emt 0:00:01]} Qe4+ {[%emt 0:00:01]} 45. Kg5 {[%emt 0:00:06]} Qe3+ {[%emt 0:00:03]} 46. Kh4 {[%emt 0:00:04]} (46. Kg4 $5 Qe4+ $8 47. Qf4 (47. Kg5 Qe3+ 48. Kg4 Qe4+ $11) 47... Qxe7 48. Qc4 $11) 46... Qe4+ {[%emt 0:00:01]} 47. g4 {[%emt 0:00:25]} Qe1+ {[%emt 0:00:13]} 48. Kg5 {[%emt 0:00:16]} Qe3+ {[%emt 0:00:02]} 49. Kh4 $1 {[%emt 0:00:10]} Qe1+ $1 {[%emt 0:00:01]} 50. Kh3 {[%emt 0:00:12]} (50. Kg5 $5 Qe3+ $8 51. Kh4 Qe1+ $11) 50... Qh1+ {[%emt 0:00:08]} 51. Kg3 {[%emt 0:00:01]} Qg1+ {[%emt 0:00:01]} 52. Kh3 {[%emt 0:00:05]} (52. Kh4 $5 Qe1+ $8 $11) 52... Qh1+ {[%emt 0:00:13]} 1/2-1/2

[Event "FIDE Open World Rapid 2024"]
[Site "New York"]
[Date "2024.12.28"]
[Round "9.17"]
[White "Schnaider, Ilan"]
[Black "Zemlyanskii, Ivan"]
[Result "0-1"]
[ECO "D01"]
[WhiteElo "2392"]
[BlackElo "2543"]
[Annotator "ChessBase"]
[PlyCount "72"]
[EventDate "2024.12.14"]
[EventType "swiss"]
[EventCountry "USA"]
[SourceTitle "playchess.com"]
[Source "ChessBase"]
[SourceQuality "1"]
[TimeControl "900+10"]

1. d4 {[%emt 0:00:02]} Nf6 {[%emt 0:00:32]} 2. Nc3 {[%emt 0:00:10]} d5 {[%emt 0:00:15]} 3. Bf4 {[%emt 0:00:03]} g6 {[%emt 0:00:31]} 4. Qd2 {[%emt 0:00:05]} Bg7 {[%emt 0:00:03]} 5. Bh6 {[%emt 0:00:01]} O-O {[%emt 0:01:48]} 6. Bxg7 {[%emt 0:00:04]} Kxg7 {[%emt 0:00:01]} 7. e3 {[%emt 0:00:02]} c5 {[%emt 0:00:47]} 8. h3 {[%emt 0:00:03]} Nc6 {[%emt 0:00:45]} 9. g4 {[%emt 0:00:02]} cxd4 {[%emt 0:00:27]} 10. exd4 {[%emt 0:00:03]} Qd6 {[%emt 0:01:46]} 11. O-O-O {[%emt 0:00:31]} b6 {[%emt 0:00:36]} 12. f4 {[%emt 0:05:31]} Rd8 {[%emt 0:02:10]} 13. Bb5 {[%emt 0:04:32]} Bd7 {[%emt 0:00:27]} 14. Nf3 {[%emt 0:01:57]} Ne4 {[%emt 0:00:40]} 15. Nxe4 {[%emt 0:00:39]} dxe4 {[%emt 0:00:01]} 16. Ng5 {[%emt 0:02:19]} Qxd4 {[%emt 0:00:17]} 17. Qxd4+ {[%emt 0:00:46]} Nxd4 {[%emt 0:00:03]} 18. Bc4 {[%emt 0:00:12]} Be8 {[%emt 0:00:45]} 19. c3 {[%emt 0:00:56]} b5 {[%emt 0:00:48]} 20. cxd4 {[%emt 0:00:20]} Rac8 {[%emt 0:00:02]} 21. Nxe4 {[%emt 0:00:10]} Rxc4+ {[%emt 0:00:01]} 22. Kb1 {[%emt 0:00:03]} Rdxd4 {[%emt 0:00:08]} 23. Rxd4 {[%emt 0:00:13]} Rxd4 {[%emt 0:00:02]} 24. Re1 {[%emt 0:00:00]} e6 {[%emt 0:00:16]} 25. f5 {[%emt 0:00:24]} exf5 {[%emt 0:00:10]} 26. gxf5 {[%emt 0:00:05]} Bd7 {[%emt 0:00:00]} 27. f6+ {[%emt 0:00:11]} Kh6 {[%emt 0:00:01]} 28. Nc5 {[%emt 0:00:14]} Bf5+ {[%emt 0:00:01]} 29. Ka1 {[%emt 0:00:00]} Kg5 {[%emt 0:00:05]} 30. a4 {[%emt 0:00:20]} Rc4 {[%emt 0:00:01]} 31. Re5 {[%emt 0:00:10]} Kxf6 {[%emt 0:00:03]} 32. Rd5 {[%emt 0:00:02]} bxa4 {[%emt 0:00:06]} 33. Ka2 {[%emt 0:00:19]} Bxh3 {[%emt 0:00:03]} 34. Ka3 {[%emt 0:00:05]} Be6 {[%emt 0:00:01]} 35. Nd7+ {[%emt 0:00:15]} Ke7 {[%emt 0:00:03]} 36. Rc5 {[%emt 0:00:02]} Kxd7 {[%emt 0:00:02]} 0-1

[Event "FIDE Open World Rapid 2024"]
[Site "New York"]
[Date "2024.12.27"]
[Round "9.18"]
[White "Xiong, Jeffery"]
[Black "Lomasov, Semyon"]
[Result "1/2-1/2"]
[ECO "E21"]
[WhiteElo "2636"]
[BlackElo "2559"]
[Annotator "ChessBase"]
[PlyCount "53"]
[EventDate "2024.12.14"]
[EventType "swiss"]
[EventCountry "USA"]
[SourceTitle "playchess.com"]
[Source "ChessBase"]
[SourceQuality "1"]
[TimeControl "900+10"]

1. d4 {[%emt 0:00:02]} e6 {[%emt 0:00:01]} 2. Nf3 {[%emt 0:00:02]} Nf6 {[%emt 0:00:01]} 3. c4 {[%emt 0:00:02]} Bb4+ {[%emt 0:00:04]} 4. Nc3 {[%emt 0:00:02]} b6 {[%emt 0:00:12]} 5. Qb3 {[%emt 0:00:02]} c5 {[%emt 0:00:22]} 6. dxc5 {[%emt 0:00:02]} bxc5 {[%emt 0:01:12]} 7. g3 {[%emt 0:00:03]} Nc6 {[%emt 0:00:15]} 8. Bg2 {[%emt 0:00:02]} Bb7 {[%emt 0:02:50]} 9. O-O {[%emt 0:01:00]} Na5 {[%emt 0:00:16]} 10. Qc2 {[%emt 0:00:08]} Nxc4 {[%emt 0:01:19]} 11. Na4 {[%emt 0:00:02]} Nb6 {[%emt 0:00:43]} 12. a3 {[%emt 0:00:01]} Be4 {[%emt 0:00:35]} 13. Qd1 {[%emt 0:00:03]} Nxa4 {[%emt 0:00:04]} 14. axb4 {[%emt 0:00:02]} Nb6 {[%emt 0:00:04]} 15. bxc5 {[%emt 0:00:07]} Nbd5 {[%emt 0:00:01]} 16. Qd4 {[%emt 0:01:46]} O-O {[%emt 0:00:05]} 17. b4 {[%emt 0:01:16]} d6 {[%emt 0:01:53]} 18. cxd6 {[%emt 0:00:26]} Qxd6 {[%emt 0:00:02]} 19. b5 {[%emt 0:01:09]} Qb8 {[%emt 0:01:46]} 20. Ra5 {[%emt 0:01:00]} Qb6 {[%emt 0:01:18]} 21. Qa1 {[%emt 0:00:13]} Rac8 {[%emt 0:01:49]} 22. Bb2 {[%emt 0:00:20]} Rc2 {[%emt 0:00:04]} 23. Bd4 {[%emt 0:01:39]} Qb8 {[%emt 0:01:23]} 24. Re1 {[%emt 0:00:00]} Rfc8 {[%emt 0:00:44]} 25. Bxa7 {[%emt 0:00:14]} Qb7 {[%emt 0:00:00]} 26. Bd4 {[%emt 0:01:58]} Nc3 {[%emt 0:00:04]} 27. Bxc3 {[%emt 0:05:08]} 1/2-1/2

[Event "FIDE Open World Rapid 2024"]
[Site "New York"]
[Date "2024.12.28"]
[Round "9.18"]
[White "Banh Gia Huy"]
[Black "Amar, Elham"]
[Result "0-1"]
[ECO "D02"]
[WhiteElo "2422"]
[BlackElo "2534"]
[Annotator "ChessBase"]
[PlyCount "136"]
[EventDate "2024.12.14"]
[EventType "swiss"]
[EventCountry "USA"]
[SourceTitle "playchess.com"]
[Source "ChessBase"]
[SourceQuality "1"]
[TimeControl "900+10"]

1. d4 {[%emt 0:00:01]} Nf6 {[%emt 0:00:01]} 2. Nf3 {[%emt 0:00:01]} d5 {[%emt 0:00:02]} 3. Bf4 {[%emt 0:00:02]} c5 {[%emt 0:00:10]} 4. e3 {[%emt 0:00:01]} Nc6 {[%emt 0:00:02]} 5. Nbd2 {[%emt 0:00:02]} e6 {[%emt 0:00:12]} 6. c3 {[%emt 0:00:02]} cxd4 {[%emt 0:00:03]} 7. exd4 {[%emt 0:00:02]} Nh5 {[%emt 0:00:01]} 8. Be3 {[%emt 0:00:01]} Bd6 {[%emt 0:00:02]} 9. Ne5 {[%emt 0:00:02]} g6 {[%emt 0:00:03]} 10. Nd3 {[%emt 0:00:03]} O-O {[%emt 0:00:17]} 11. g3 {[%emt 0:00:07]} Re8 {[%emt 0:00:09]} 12. Bg2 {[%emt 0:00:11]} Ng7 {[%emt 0:00:26]} 13. O-O {[%emt 0:00:11]} Nf5 {[%emt 0:00:23]} 14. Bf4 {[%emt 0:00:49]} Bf8 {[%emt 0:00:01]} 15. Re1 {[%emt 0:00:14]} f6 {[%emt 0:00:26]} 16. h4 {[%emt 0:00:14]} b6 {[%emt 0:00:19]} 17. Nf3 {[%emt 0:00:08]} Ba6 {[%emt 0:00:11]} 18. a4 {[%emt 0:02:15]} Rc8 {[%emt 0:00:26]} 19. b4 {[%emt 0:00:52]} Bxd3 {[%emt 0:00:25]} 20. Qxd3 {[%emt 0:00:01]} Bd6 {[%emt 0:00:02]} 21. Bd2 {[%emt 0:01:06]} Qd7 {[%emt 0:00:18]} 22. Re2 {[%emt 0:00:55]} Bf8 {[%emt 0:00:37]} 23. Bf4 {[%emt 0:02:14]} a5 {[%emt 0:00:32]} 24. b5 {[%emt 0:02:04]} Nd8 {[%emt 0:00:02]} 25. g4 {[%emt 0:00:20]} Nd6 {[%emt 0:00:11]} 26. g5 {[%emt 0:00:17]} Ne4 {[%emt 0:01:22]} 27. c4 {[%emt 0:02:13]} Bd6 {[%emt 0:00:58]} 28. Bxd6 {[%emt 0:00:31]} Qxd6 {[%emt 0:00:01]} 29. cxd5 {[%emt 0:01:13]} exd5 {[%emt 0:00:06]} 30. gxf6 {[%emt 0:00:02]} Ne6 {[%emt 0:01:10]} 31. Ne5 {[%emt 0:01:23]} Nxf6 {[%emt 0:00:01]} 32. Qd2 {[%emt 0:00:58]} Nh5 {[%emt 0:01:00]} 33. Bh3 {[%emt 0:00:03]} Rb8 {[%emt 0:02:38]} 34. Bxe6+ {[%emt 0:00:55]} Qxe6 {[%emt 0:00:01]} 35. Rae1 {[%emt 0:00:13]} Rf8 {[%emt 0:00:15]} 36. f3 {[%emt 0:00:13]} Nf4 {[%emt 0:01:45]} 37. Rh2 {[%emt 0:00:05]} Rb7 {[%emt 0:00:42]} 38. Kh1 {[%emt 0:00:17]} Nh5 {[%emt 0:00:26]} 39. Rg1 {[%emt 0:00:05]} Rc7 {[%emt 0:00:32]} 40. Qh6 {[%emt 0:00:22]} Qf5 {[%emt 0:00:30]} 41. Qe3 {[%emt 0:00:33]} Re8 {[%emt 0:01:45]} 42. Qg5 {[%emt 0:00:17]} Qxg5 {[%emt 0:00:16]} 43. hxg5 {[%emt 0:00:04]} Rc3 {[%emt 0:00:00]} 44. Ra2 {[%emt 0:00:15]} Rf8 {[%emt 0:00:06]} 45. Rgg2 {[%emt 0:00:09]} Rfc8 {[%emt 0:00:47]} 46. Kh2 {[%emt 0:00:15]} Nf4 {[%emt 0:00:07]} 47. Rg4 {[%emt 0:00:04]} Rc2+ {[%emt 0:00:43]} 48. Rxc2 {[%emt 0:00:02]} Rxc2+ {[%emt 0:00:00]} 49. Kh1 {[%emt 0:00:21]} Rc1+ {[%emt 0:00:20]} 50. Rg1 {[%emt 0:00:15]} Rc3 {[%emt 0:00:24]} 51. Re1 {[%emt 0:00:15]} Ra3 {[%emt 0:00:14]} 52. Rc1 {[%emt 0:00:11]} Ne6 {[%emt 0:00:27]} 53. Rc6 {[%emt 0:00:07]} Nxd4 {[%emt 0:00:29]} 54. Rxb6 {[%emt 0:00:02]} Rxa4 {[%emt 0:00:04]} 55. Rb8+ {[%emt 0:00:05]} Kg7 {[%emt 0:00:01]} 56. Rb7+ {[%emt 0:00:15]} Kg8 {[%emt 0:00:13]} 57. Rb8+ {[%emt 0:00:04]} Kg7 {[%emt 0:00:02]} 58. Rb7+ {[%emt 0:00:00]} Kf8 {[%emt 0:00:33]} 59. b6 {[%emt 0:00:24]} Rb4 {[%emt 0:00:11]} 60. Nd7+ {[%emt 0:00:28]} Ke7 {[%emt 0:00:09]} 61. Ra7 {[%emt 0:00:13]} Nc6 {[%emt 0:00:34]} 62. Nf6+ {[%emt 0:00:08]} Ke6 {[%emt 0:00:10]} 63. Rxh7 {[%emt 0:00:13]} Rxb6 {[%emt 0:00:00]} 64. Nd7 {[%emt 0:00:06]} Rb2 {[%emt 0:00:20]} 65. f4 {[%emt 0:00:05]} d4 {[%emt 0:00:15]} 66. Rg7 {[%emt 0:00:04]} Kf5 {[%emt 0:00:29]} 67. Rf7+ {[%emt 0:00:19]} Kg4 {[%emt 0:00:01]} 68. Rf6 {[%emt 0:00:07]} Kg3 {[%emt 0:00:03]} 0-1

[Event "FIDE Open World Rapid 2024"]
[Site "New York"]
[Date "2024.12.27"]
[Round "9.19"]
[White "Durarbayli, Vasif"]
[Black "Praggnanandhaa R"]
[Result "0-1"]
[ECO "C02"]
[WhiteElo "2622"]
[BlackElo "2737"]
[Annotator "TA"]
[PlyCount "104"]
[EventDate "2024.12.14"]
[EventType "swiss"]
[EventCountry "USA"]
[SourceTitle "playchess.com"]
[Source "ChessBase"]
[SourceQuality "1"]
[TimeControl "900+10"]

{[%evp 14,104,0,0,-20,-27,-18,-25,-22,-29,0,0,0,0,5,6,14,0,7,19,53,45,59,42,123,116,114,117,127,101,85,47,50,0,54,47,60,62,66,0,0,0,0,-4,0,0,0,0,0,0,37,0,85,27,32,0,49,16,9,14,13,0,12,0,0,0,0,0,8,0,11,0,0,-139,-135,-153,-163,-187,-216,-193,-178,-29967,-29970,-29970,-29971,-29969,-29970,-12370,-12370,-29997,-29998,-29998,-29980]} 1. e4 {[%emt 0:00:01]} e6 {[%emt 0:00:01]} 2. d4 {[%emt 0:00:01]} d5 {[%emt 0:00:01]} 3. e5 {[%emt 0:00:00]} c5 {[%emt 0:00:01]} 4. c3 {[%emt 0:00:01]} Nc6 {[%emt 0:00:02]} 5. Nf3 {[%emt 0:00:01]} Qb6 {[%emt 0:00:02]} 6. Be2 {[%emt 0:00:02]} cxd4 {[%emt 0:00:16]} 7. cxd4 {[%emt 0:00:02]} Nh6 {[%emt 0:00:02]} 8. Bxh6 {[%emt 0:00:01]} Qxb2 {[%emt 0:00:07]} 9. Nc3 {[%emt 0:00:01]} Qxc3+ {[%emt 0:00:02]} 10. Bd2 {[%emt 0:00:01]} Qa3 {[%emt 0:00:02]} 11. O-O {[%emt 0:00:02]} Bb4 {[%emt 0:01:54]} 12. Rb1 {[%emt 0:00:13][%cal Ba1b1,Bb1b3,Bb3c3][%mdl 32]} Bxd2 {[%emt 0:00:10]} 13. Qxd2 {[%emt 0:00:01]} O-O {[%emt 0:00:02]} 14. Rfc1 {[%emt 0:00:01] Prevents b6.} Qe7 {[%emt 0:00:56]} 15. Rb3 {[%emt 0:04:48][%mdl 1024] White has compensation.} Qd8 {[%emt 0:01:27]} 16. Bd3 {[%emt 0:01:08]} h6 {[%emt 0:01:18] Inhibits Ng5.} 17. Bb1 {[%emt 0:00:58]} Na5 {[%emt 0:00:42]} 18. Rbc3 {[%emt 0:00:52]} Nc4 {[%emt 0:00:06]} (18... Nc6 $14) 19. Qc2 $16 {[%emt 0:00:23]} g6 {[%emt 0:00:09]} 20. h4 {[%emt 0:00:01][%cal Bh2h4,Bh4h5][%mdl 32]} Bd7 {[%emt 0:00:44]} 21. h5 $1 {[%emt 0:02:20]} Be8 {[%emt 0:00:02]} 22. Rd1 {[%emt 0:01:13]} (22. Nh2 f5 23. exf6 Qxf6 24. hxg6 Qxd4 25. Rh3) 22... Rc8 {[%emt 0:00:29]} 23. Qc1 {[%emt 0:00:00]} (23. Nh2 $14) 23... g5 {[%emt 0:02:39]} (23... Kg7 $11) 24. Qc2 $1 $14 {[%emt 0:01:25]} f5 {[%emt 0:00:01]} 25. exf6 {[%emt 0:00:01]} Rc7 $1 {[%emt 0:00:02] Prevents Qh7+} 26. Ne5 {[%emt 0:00:19]} (26. f7+ $1 $14 Rfxf7 27. Qg6+ Rg7 28. Qxe6+ Bf7 29. Qxh6) 26... Qxf6 $11 {[%emt 0:00:13]} 27. Nxc4 {[%emt 0:00:12]} (27. Qe2 {is interesting.} Qg7 28. Nxc4 dxc4 29. Rxc4 Rxc4 30. Qxc4 Bxh5 31. Qxe6+ Qf7 32. Qxf7+ Rxf7 33. f3) 27... dxc4 {[%emt 0:00:24]} (27... Bxh5 28. Ne3 Bxd1 29. Nxd1 $16) 28. Rxc4 {[%emt 0:00:02]} Rg7 {[%emt 0:00:05]} 29. Rc8 {[%emt 0:01:18]} Bxh5 {[%emt 0:00:20]} 30. Rxf8+ {[%emt 0:00:16]} Qxf8 {[%emt 0:00:37]} 31. Re1 {[%emt 0:00:03]} Bf7 {[%emt 0:02:06]} 32. Qa4 {[%emt 0:00:30]} a6 {[%emt 0:01:01]} (32... Be8 $11 {remains equal.} 33. Qxa7 Qb4) 33. Be4 {[%emt 0:00:01]} ({White should play} 33. Qd7 $16) 33... Qc8 {[%emt 0:00:27]} 34. Qa3 {[%emt 0:00:58]} Qd7 {[%emt 0:00:28]} (34... Bg6 $11) 35. Qc5 {[%emt 0:00:49]} Bg6 {[%emt 0:00:25]} 36. Bf3 {[%emt 0:00:48][%cal Oe1e6]} Kh7 {[%emt 0:00:55]} 37. a3 {[%emt 0:00:53]} Bf5 {[%emt 0:00:14]} 38. d5 {[%emt 0:00:14]} exd5 {[%emt 0:00:14]} 39. Bxd5 {[%emt 0:00:01]} Bg6 {[%emt 0:00:23]} 40. Re6 {[%emt 0:00:35]} Rf7 {[%emt 0:02:01]} 41. Rd6 {[%emt 0:00:42]} Qf5 {[%emt 0:00:22]} 42. Rd8 {[%emt 0:00:27]} Qf6 {[%emt 0:00:18]} 43. Qc8 {[%emt 0:00:24]} (43. Bxf7 $11 Qxd8 44. Bxg6+ Kxg6 45. Qc2+ Kf6 46. Qb2+ Ke6 47. Qb3+ Ke5 48. Qc3+ (48. Qxb7 Qd1+ 49. Kh2 Qh5+ 50. Kg1 Qd1+ 51. Kh2 Qh5+ 52. Kg1 Qd1+ $11) 48... Kd6 49. Qd4+ Kc7 50. Qg7+ Qd7 51. Qxh6) 43... Qxf2+ $17 {[%emt 0:00:06]} 44. Kh2 {[%emt 0:00:09]} Qh4+ $1 {[%emt 0:00:10]} 45. Kg1 {[%emt 0:00:09] Rh8+ would now be deadly.} Qe1+ {[%emt 0:00:02]} 46. Kh2 {[%emt 0:00:01]} Qe5+ {[%emt 0:00:19]} 47. g3 $2 {[%emt 0:00:10]} (47. Kg1 $19) 47... Rf2+ {[%emt 0:00:12]} 48. Bg2 {[%emt 0:00:01] [#]} Rxg2+ $1 {[%emt 0:00:17]} 49. Kxg2 {[%emt 0:00:01]} Qe2+ {[%emt 0:00:01]} 50. Kh3 {[%emt 0:00:34]} Qf1+ {[%emt 0:00:03]} 51. Kg4 {[%emt 0:00:10] [#]} Bh5+ $1 {[%emt 0:00:02][%mdl 512]} 52. Kxh5 {[%emt 0:00:02]} Qe2+ {[%emt 0:00:09]} 0-1

[Event "FIDE Open World Rapid 2024"]
[Site "New York"]
[Date "2024.12.28"]
[Round "9.19"]
[White "Brodsky, David"]
[Black "Sardana, Rishi"]
[Result "1/2-1/2"]
[ECO "D37"]
[WhiteElo "2538"]
[BlackElo "2466"]
[Annotator "ChessBase"]
[PlyCount "156"]
[EventDate "2024.12.14"]
[EventType "swiss"]
[EventCountry "USA"]
[SourceTitle "playchess.com"]
[Source "ChessBase"]
[SourceQuality "1"]
[TimeControl "900+10"]

1. d4 {[%emt 0:00:01]} Nf6 {[%emt 0:00:02]} 2. c4 {[%emt 0:00:01]} e6 {[%emt 0:00:01]} 3. Nf3 {[%emt 0:00:02]} h6 {[%emt 0:00:02]} 4. Nc3 {[%emt 0:00:56]} d5 {[%emt 0:00:02]} 5. Bf4 {[%emt 0:00:07]} Bd6 {[%emt 0:00:02]} 6. Qc1 {[%emt 0:00:08]} b6 {[%emt 0:00:54]} 7. Bxd6 {[%emt 0:04:29]} Qxd6 {[%emt 0:00:11]} 8. Nb5 {[%emt 0:00:40]} Qe7 {[%emt 0:01:17]} 9. cxd5 {[%emt 0:00:09]} Qb4+ {[%emt 0:00:59]} 10. Nc3 {[%emt 0:00:02]} exd5 {[%emt 0:01:44]} 11. e3 {[%emt 0:00:03]} O-O {[%emt 0:00:07]} 12. Bd3 {[%emt 0:00:14]} Qe7 {[%emt 0:00:09]} 13. O-O {[%emt 0:00:12]} c5 {[%emt 0:00:04]} 14. dxc5 {[%emt 0:01:53]} bxc5 {[%emt 0:00:03]} 15. Na4 {[%emt 0:00:45]} Nbd7 {[%emt 0:00:51]} 16. b3 {[%emt 0:00:19]} Bb7 {[%emt 0:00:26]} 17. Qa3 {[%emt 0:00:17]} Rfc8 {[%emt 0:01:13]} 18. Rac1 {[%emt 0:00:10]} Kf8 {[%emt 0:01:18]} 19. Rfe1 {[%emt 0:00:41]} Rc7 {[%emt 0:00:29]} 20. Nd4 {[%emt 0:00:50]} g6 {[%emt 0:00:47]} 21. Bf1 {[%emt 0:00:42]} Ne4 {[%emt 0:01:08]} 22. Nb5 {[%emt 0:00:36]} Rcc8 {[%emt 0:00:01]} 23. Qb2 {[%emt 0:00:14]} Kg8 {[%emt 0:00:09]} 24. Red1 {[%emt 0:00:32]} h5 {[%emt 0:01:24]} 25. Nbc3 {[%emt 0:00:21]} Nef6 {[%emt 0:00:06]} 26. Ne2 {[%emt 0:00:25]} h4 {[%emt 0:00:55]} 27. h3 {[%emt 0:00:08]} Ne4 {[%emt 0:01:07]} 28. Nf4 {[%emt 0:00:21]} Ndf6 {[%emt 0:00:05]} 29. Nd3 {[%emt 0:00:23]} Nd7 {[%emt 0:00:41]} 30. Be2 {[%emt 0:01:13]} Rc7 {[%emt 0:00:09]} 31. b4 {[%emt 0:01:07]} c4 {[%emt 0:00:20]} 32. Nf4 {[%emt 0:00:02]} Ndf6 {[%emt 0:00:08]} 33. Bf3 {[%emt 0:00:09]} Rd8 {[%emt 0:00:26]} 34. a3 {[%emt 0:00:18]} Ng5 {[%emt 0:00:07]} 35. Be2 {[%emt 0:00:13]} Nfe4 {[%emt 0:00:33]} 36. Qd4 {[%emt 0:00:27]} Rcd7 {[%emt 0:00:40]} 37. Bg4 {[%emt 0:00:20]} Rc7 {[%emt 0:00:30]} 38. Nc3 {[%emt 0:00:34]} Nxc3 {[%emt 0:00:26]} 39. Rxc3 {[%emt 0:00:02]} Ne4 {[%emt 0:00:07]} 40. Rc2 {[%emt 0:00:22]} Ba8 {[%emt 0:00:56]} 41. Bf3 {[%emt 0:00:12]} Rcd7 {[%emt 0:00:12]} 42. Qb2 {[%emt 0:00:42]} d4 {[%emt 0:00:34]} 43. Rxc4 {[%emt 0:00:20]} dxe3 {[%emt 0:00:16]} 44. Rxd7 {[%emt 0:00:11]} Qxd7 {[%emt 0:00:32]} 45. fxe3 {[%emt 0:00:18]} Nd2 {[%emt 0:00:11]} 46. Rd4 {[%emt 0:00:05]} Nxf3+ {[%emt 0:00:01]} 47. gxf3 {[%emt 0:00:01]} Qc8 {[%emt 0:00:02]} 48. Rxd8+ {[%emt 0:00:12]} Qxd8 {[%emt 0:00:01]} 49. e4 {[%emt 0:00:22]} Qg5+ {[%emt 0:00:12]} 50. Ng2 {[%emt 0:00:00]} Bc6 {[%emt 0:00:14]} 51. Qc3 {[%emt 0:00:26]} Bd7 {[%emt 0:00:07]} 52. f4 {[%emt 0:00:12]} Qg3 {[%emt 0:00:27]} 53. Qxg3 {[%emt 0:00:06]} hxg3 {[%emt 0:00:01]} 54. h4 {[%emt 0:00:11]} Bc6 {[%emt 0:00:07]} 55. e5 {[%emt 0:00:06]} f6 {[%emt 0:00:01]} 56. exf6 {[%emt 0:00:14]} Kf7 {[%emt 0:00:01]} 57. Ne3 {[%emt 0:00:02]} Kxf6 {[%emt 0:00:02]} 58. Kf1 {[%emt 0:00:24]} Bf3 {[%emt 0:00:15]} 59. a4 {[%emt 0:00:07]} Ke6 {[%emt 0:00:04]} 60. Kg1 {[%emt 0:00:15]} Kf6 {[%emt 0:00:49]} 61. b5 {[%emt 0:00:06]} Ke6 {[%emt 0:00:06]} 62. a5 {[%emt 0:00:10]} Kd6 {[%emt 0:00:02]} 63. b6 {[%emt 0:00:11]} axb6 {[%emt 0:00:01]} 64. axb6 {[%emt 0:00:00]} Kc5 {[%emt 0:00:08]} 65. Nf1 {[%emt 0:00:12]} g2 {[%emt 0:00:23]} 66. Nd2 {[%emt 0:00:12]} Bd5 {[%emt 0:00:00]} 67. f5 {[%emt 0:00:19]} gxf5 {[%emt 0:00:00]} 68. h5 {[%emt 0:00:00]} Kxb6 {[%emt 0:00:09]} 69. h6 {[%emt 0:00:01]} Bg8 {[%emt 0:00:01]} 70. Kxg2 {[%emt 0:00:23]} Kc5 {[%emt 0:00:14]} 71. Kg3 {[%emt 0:00:01]} Kd6 {[%emt 0:00:32]} 72. Kf4 {[%emt 0:00:01]} Ke7 {[%emt 0:00:27]} 73. Kg5 {[%emt 0:00:06]} Kf8 {[%emt 0:00:17]} 74. Kf6 {[%emt 0:00:39]} Bh7 {[%emt 0:00:04]} 75. Nf3 {[%emt 0:00:01]} f4 {[%emt 0:00:02]} 76. Ne5 {[%emt 0:00:04]} Kg8 {[%emt 0:00:04]} 77. Kg5 {[%emt 0:00:04]} Bc2 {[%emt 0:00:05]} 78. Kxf4 {[%emt 0:00:02]} Bb1 {[%emt 0:00:01]} 1/2-1/2